[Event "Late-Titled-Tuesday-Blitz-June-04-2024"]
[Site "Chess.com"]
[Date "2024.06.04"]
[Round "6"]
[White "MaxLeto"]
[Black "JaackCamel"]
[Result "1-0"]
[WhiteElo "2441"]
[BlackElo "2242"]
[TimeControl "180+1"]
[EndTime "15:05:33 PDT"]
[Termination "MaxLeto won on time"]

1. g4 {[%clk 0:03:00.9]} 1... d5 {[%clk 0:02:58]} 2. Bg2 {[%clk 0:03:01.4]} 2...
e5 {[%clk 0:02:57.3]} 3. d4 {[%clk 0:03:01.7]} 3... e4 {[%clk 0:02:56.2]} 4. c4
{[%clk 0:03:01.8]} 4... c6 {[%clk 0:02:55.6]} 5. Nc3 {[%clk 0:03:01.8]} 5...
Bxg4 {[%clk 0:02:47.7]} 6. Qb3 {[%clk 0:03:01.8]} 6... Be6 {[%clk 0:02:35.6]} 7.
Qxb7 {[%clk 0:03:00.4]} 7... Nd7 {[%clk 0:02:34.4]} 8. cxd5 {[%clk 0:02:43.9]}
8... Rb8 {[%clk 0:02:24]} 9. Qxc6 {[%clk 0:02:40.2]} 9... Rc8 {[%clk 0:02:16]}
10. Qa4 {[%clk 0:02:29]} 10... Rxc3 {[%clk 0:02:10.1]} 11. dxe6 {[%clk
0:02:10.1]} 11... Rxc1+ {[%clk 0:02:06.6]} 12. Rxc1 {[%clk 0:02:11]} 12... fxe6
{[%clk 0:02:03.7]} 13. Bxe4 {[%clk 0:02:10.4]} 13... Nf6 {[%clk 0:02:00.8]} 14.
Bb7 {[%clk 0:02:06.9]} 14... Qb6 {[%clk 0:01:53.7]} 15. Rc8+ {[%clk 0:02:02.4]}
15... Kf7 {[%clk 0:01:51.2]} 16. Bc6 {[%clk 0:01:57.3]} 16... Bb4+ {[%clk
0:01:46.9]} 17. Kf1 {[%clk 0:01:50.9]} 17... Rxc8 {[%clk 0:01:39.2]} 18. Bxd7
{[%clk 0:01:50.5]} 18... Rc1+ {[%clk 0:01:32.9]} 19. Kg2 {[%clk 0:01:50.6]}
19... Qb7+ {[%clk 0:01:24.9]} 20. Nf3 {[%clk 0:01:40.2]} 20... Rxh1 {[%clk
0:01:16.8]} 21. Bc6 {[%clk 0:01:38]} 21... Qb6 {[%clk 0:00:43.1]} 22. Kxh1
{[%clk 0:01:31.6]} 22... Bd6 {[%clk 0:00:32.7]} 23. Qb5 {[%clk 0:01:23.4]} 23...
Qxb5 {[%clk 0:00:27.6]} 24. Bxb5 {[%clk 0:01:23.4]} 24... Ne4 {[%clk 0:00:27]}
25. Kg2 {[%clk 0:01:21.4]} 25... h6 {[%clk 0:00:25]} 26. Bc4 {[%clk 0:01:19.5]}
26... Ke7 {[%clk 0:00:21.6]} 27. e3 {[%clk 0:01:16.7]} 27... Bc7 {[%clk
0:00:19.5]} 28. Ne1 {[%clk 0:01:14.4]} 28... Nd2 {[%clk 0:00:19.2]} 29. Bd3
{[%clk 0:01:10.4]} 29... a5 {[%clk 0:00:14]} 30. f3 {[%clk 0:01:06.5]} 30... a4
{[%clk 0:00:08.2]} 31. h4 {[%clk 0:00:51.8]} 31... Bd6 {[%clk 0:00:03.2]} 32.
Kf2 {[%clk 0:00:50.7]} 32... a3 {[%clk 0:00:03.5]} 33. bxa3 {[%clk 0:00:44.7]}
33... Bxa3 {[%clk 0:00:02.3]} 34. Ke2 {[%clk 0:00:45.6]} 34... Bb4 {[%clk
0:00:02.1]} 35. Nc2 {[%clk 0:00:46.5]} 35... Ba5 {[%clk 0:00:02.1]} 36. h5
{[%clk 0:00:39.9]} 1-0

[Event "Late-Titled-Tuesday-Blitz-June-04-2024"]
[Site "Chess.com"]
[Date "2024.06.04"]
[Round "6"]
[White "oskariot"]
[Black "AlexeiShirov"]
[Result "0-1"]
[WhiteElo "2688"]
[BlackElo "2893"]
[TimeControl "180+1"]
[EndTime "15:05:35 PDT"]
[Termination "AlexeiShirov won on time"]

1. e4 {[%clk 0:02:42]} 1... e5 {[%clk 0:02:59.7]} 2. Nf3 {[%clk 0:02:41.7]} 2...
Nc6 {[%clk 0:02:59.7]} 3. Nc3 {[%clk 0:02:42.1]} 3... g6 {[%clk 0:02:58.8]} 4.
Bc4 {[%clk 0:02:41.3]} 4... Bg7 {[%clk 0:02:57.9]} 5. a4 {[%clk 0:02:40.4]} 5...
Nf6 {[%clk 0:02:55]} 6. d3 {[%clk 0:02:39.4]} 6... d6 {[%clk 0:02:52.8]} 7. h3
{[%clk 0:02:39.2]} 7... Be6 {[%clk 0:02:51.6]} 8. Bxe6 {[%clk 0:02:38.6]} 8...
fxe6 {[%clk 0:02:51]} 9. a5 {[%clk 0:02:39.5]} 9... a6 {[%clk 0:02:49.4]} 10.
O-O {[%clk 0:02:38.8]} 10... O-O {[%clk 0:02:47.2]} 11. Be3 {[%clk 0:02:37.8]}
11... Nh5 {[%clk 0:02:43]} 12. Ne2 {[%clk 0:02:36.8]} 12... Rxf3 {[%clk
0:02:39.9]} 13. gxf3 {[%clk 0:02:37.7]} 13... Qh4 {[%clk 0:02:39.4]} 14. Kh2
{[%clk 0:02:16.8]} 14... Rf8 {[%clk 0:02:33.1]} 15. c3 {[%clk 0:01:59.5]} 15...
Rxf3 {[%clk 0:01:40.1]} 16. Ng1 {[%clk 0:01:57.5]} 16... Rf7 {[%clk 0:01:39.6]}
17. Qg4 {[%clk 0:01:53.6]} 17... Qe7 {[%clk 0:01:36.3]} 18. Ne2 {[%clk
0:01:48.6]} 18... Nf4 {[%clk 0:01:14.2]} 19. Bxf4 {[%clk 0:01:09]} 19... exf4
{[%clk 0:01:14.2]} 20. d4 {[%clk 0:01:08.6]} 20... f3 {[%clk 0:01:14.8]} 21. Ng3
{[%clk 0:00:45.4]} 21... Bh6 {[%clk 0:01:14]} 22. d5 {[%clk 0:00:45.7]} 22...
Nd8 {[%clk 0:01:11.7]} 23. Nh5 {[%clk 0:00:21]} 23... Kf8 {[%clk 0:01:04.1]} 24.
Rg1 {[%clk 0:00:11.8]} 24... Ke8 {[%clk 0:01:01.6]} 25. Rae1 {[%clk 0:00:06.6]}
25... gxh5 {[%clk 0:00:53.2]} 26. Qxh5 {[%clk 0:00:07.5]} 26... Bf4+ {[%clk
0:00:51]} 27. Kh1 {[%clk 0:00:08.1]} 27... Kd7 {[%clk 0:00:48.9]} 28. e5 {[%clk
0:00:07.8]} 28... Bxe5 {[%clk 0:00:45.8]} 29. Rxe5 {[%clk 0:00:04.8]} 29... dxe5
{[%clk 0:00:45.1]} 30. Rg8 {[%clk 0:00:05.4]} 30... Rg7 {[%clk 0:00:32.8]} 31.
Rh8 {[%clk 0:00:02]} 31... exd5 {[%clk 0:00:20.4]} 0-1

[Event "Late-Titled-Tuesday-Blitz-June-04-2024"]
[Site "Chess.com"]
[Date "2024.06.04"]
[Round "6"]
[White "mostafa_sakha"]
[Black "kalxandria"]
[Result "1-0"]
[WhiteElo "2397"]
[BlackElo "2228"]
[TimeControl "180+1"]
[EndTime "15:05:42 PDT"]
[Termination "mostafa_sakha won by resignation"]

1. d4 {[%clk 0:03:00]} 1... Nf6 {[%clk 0:02:58.8]} 2. c4 {[%clk 0:03:00]} 2...
e6 {[%clk 0:02:58.2]} 3. Nc3 {[%clk 0:03:00.3]} 3... d5 {[%clk 0:02:56.8]} 4.
cxd5 {[%clk 0:03:00.5]} 4... exd5 {[%clk 0:02:56.3]} 5. Bg5 {[%clk 0:03:00.6]}
5... c6 {[%clk 0:02:55.1]} 6. e3 {[%clk 0:03:00.9]} 6... Nbd7 {[%clk 0:02:53.6]}
7. Bd3 {[%clk 0:03:00.7]} 7... Be7 {[%clk 0:02:52.5]} 8. Nge2 {[%clk 0:03:00.7]}
8... Nf8 {[%clk 0:02:50.9]} 9. Qc2 {[%clk 0:02:54]} 9... Ne6 {[%clk 0:02:43]}
10. Bh4 {[%clk 0:02:52.8]} 10... Nh5 {[%clk 0:02:40]} 11. Bxe7 {[%clk
0:02:51.7]} 11... Qxe7 {[%clk 0:02:40.9]} 12. O-O-O {[%clk 0:02:46.3]} 12... g6
{[%clk 0:02:36.4]} 13. g4 {[%clk 0:02:43.3]} 13... Nhg7 {[%clk 0:02:34.4]} 14.
f4 {[%clk 0:02:30.2]} 14... Bd7 {[%clk 0:02:29.9]} 15. Ng3 {[%clk 0:02:25.2]}
15... O-O-O {[%clk 0:02:27.8]} 16. Rhe1 {[%clk 0:02:24.3]} 16... Kb8 {[%clk
0:02:25.8]} 17. f5 {[%clk 0:02:13.9]} 17... Ng5 {[%clk 0:02:17.5]} 18. e4 {[%clk
0:02:12.2]} 18... Nf3 {[%clk 0:02:12.8]} 19. Rf1 {[%clk 0:01:56.8]} 19... Qg5+
{[%clk 0:02:02.7]} 20. Kb1 {[%clk 0:01:51.1]} 20... Nxd4 {[%clk 0:01:37]} 21.
Qf2 {[%clk 0:01:50.2]} 21... c5 {[%clk 0:01:23.5]} 22. Nxd5 {[%clk 0:01:45]}
22... Bc6 {[%clk 0:01:11.8]} 23. Bc4 {[%clk 0:01:18.2]} 23... Qxg4 {[%clk
0:01:05.4]} 24. Rxd4 {[%clk 0:01:02.2]} 24... cxd4 {[%clk 0:01:03.5]} 25. Qxd4
{[%clk 0:01:02.7]} 25... Bxd5 {[%clk 0:00:50.8]} 26. Bxd5 {[%clk 0:01:02.3]}
26... gxf5 {[%clk 0:00:47.9]} 27. Qe5+ {[%clk 0:00:19.4]} 27... Ka8 {[%clk
0:00:43.3]} 28. Rc1 {[%clk 0:00:18.5]} 28... fxe4 {[%clk 0:00:33.6]} 29. Nxe4
{[%clk 0:00:09.3]} 29... Rxd5 {[%clk 0:00:30.4]} 30. Qxd5 {[%clk 0:00:09.1]}
30... Qe6 {[%clk 0:00:28.9]} 31. Qd4 {[%clk 0:00:04.7]} 31... Re8 {[%clk
0:00:25.3]} 32. Nd6 {[%clk 0:00:03.9]} 32... Rd8 {[%clk 0:00:22.8]} 33. Qxg7
{[%clk 0:00:02.1]} 33... Qxd6 {[%clk 0:00:22.9]} 34. Qxh7 {[%clk 0:00:02]} 34...
Qd3+ {[%clk 0:00:23.2]} 35. Qxd3 {[%clk 0:00:02]} 35... Rb8 {[%clk 0:00:23.9]}
36. Qc3 {[%clk 0:00:01.7]} 1-0

[Event "Late-Titled-Tuesday-Blitz-June-04-2024"]
[Site "Chess.com"]
[Date "2024.06.04"]
[Round "6"]
[White "MiguelBestard1981"]
[Black "emeli_chess"]
[Result "0-1"]
[WhiteElo "2194"]
[BlackElo "2359"]
[TimeControl "180+1"]
[EndTime "15:05:44 PDT"]
[Termination "emeli_chess won on time"]

1. d4 {[%clk 0:03:00.9]} 1... Nf6 {[%clk 0:02:59.6]} 2. Bf4 {[%clk 0:03:00.2]}
2... d5 {[%clk 0:02:58.8]} 3. e3 {[%clk 0:03:01.1]} 3... c5 {[%clk 0:02:58.6]}
4. c3 {[%clk 0:03:00.4]} 4... Nc6 {[%clk 0:02:56.7]} 5. Nd2 {[%clk 0:02:58.2]}
5... cxd4 {[%clk 0:02:55.5]} 6. exd4 {[%clk 0:02:57.3]} 6... Bf5 {[%clk
0:02:55]} 7. Ngf3 {[%clk 0:02:53.9]} 7... e6 {[%clk 0:02:53.9]} 8. Qb3 {[%clk
0:02:48.9]} 8... Qc8 {[%clk 0:02:53.6]} 9. Ne5 {[%clk 0:02:47.8]} 9... Be7
{[%clk 0:02:37.8]} 10. Ndf3 {[%clk 0:02:38.2]} 10... O-O {[%clk 0:02:34.9]} 11.
h3 {[%clk 0:02:36.5]} 11... Nxe5 {[%clk 0:02:24.7]} 12. Nxe5 {[%clk 0:02:37.4]}
12... Nd7 {[%clk 0:02:17.8]} 13. Be2 {[%clk 0:02:05.7]} 13... Nxe5 {[%clk
0:02:10.9]} 14. Bxe5 {[%clk 0:02:06.6]} 14... a6 {[%clk 0:02:09]} 15. O-O {[%clk
0:02:03.2]} 15... Qd7 {[%clk 0:02:07.7]} 16. Qb6 {[%clk 0:01:57.6]} 16... Rfc8
{[%clk 0:02:05.1]} 17. a4 {[%clk 0:01:55.3]} 17... Rc6 {[%clk 0:02:01.6]} 18.
Qb3 {[%clk 0:01:53.1]} 18... Bd6 {[%clk 0:02:00.7]} 19. f4 {[%clk 0:01:27.8]}
19... f6 {[%clk 0:01:58.1]} 20. Bxd6 {[%clk 0:01:26.6]} 20... Qxd6 {[%clk
0:01:53.6]} 21. Qa3 {[%clk 0:01:07.5]} 21... Rac8 {[%clk 0:01:35.9]} 22. Qxd6
{[%clk 0:01:01]} 22... Rxd6 {[%clk 0:01:36.3]} 23. a5 {[%clk 0:01:01]} 23... Rd7
{[%clk 0:01:27.7]} 24. Kf2 {[%clk 0:00:58.3]} 24... Re7 {[%clk 0:01:27.5]} 25.
Ke3 {[%clk 0:00:55.3]} 25... Bg6 {[%clk 0:01:16.9]} 26. Ra4 {[%clk 0:00:50.9]}
26... e5 {[%clk 0:01:10.6]} 27. fxe5 {[%clk 0:00:48]} 27... fxe5 {[%clk
0:01:10.4]} 28. Bf3 {[%clk 0:00:46]} 28... e4 {[%clk 0:01:07.9]} 29. Bg4 {[%clk
0:00:43.9]} 29... Rcc7 {[%clk 0:01:03.3]} 30. Rb4 {[%clk 0:00:42.4]} 30... h5
{[%clk 0:00:55.5]} 31. Be2 {[%clk 0:00:38.6]} 31... Rf7 {[%clk 0:00:53.4]} 32.
Rxf7 {[%clk 0:00:32]} 32... Bxf7 {[%clk 0:00:53]} 33. Rb6 {[%clk 0:00:32.1]}
33... g5 {[%clk 0:00:50.4]} 34. Rd6 {[%clk 0:00:18.3]} 34... Kg7 {[%clk
0:00:49.9]} 35. Bd1 {[%clk 0:00:10.9]} 35... Kf8 {[%clk 0:00:46.7]} 36. Bb3
{[%clk 0:00:10.4]} 36... Ke7 {[%clk 0:00:45.5]} 37. Rh6 {[%clk 0:00:08.1]} 37...
h4 {[%clk 0:00:45.3]} 38. Rh7 {[%clk 0:00:08]} 38... Rd7 {[%clk 0:00:39.6]} 39.
Ba4 {[%clk 0:00:03.5]} 39... Rd6 {[%clk 0:00:39.2]} 40. Bd1 {[%clk 0:00:02.2]}
40... Rf6 {[%clk 0:00:38.2]} 41. Be2 {[%clk 0:00:01.7]} 41... Kd6 {[%clk
0:00:34.9]} 42. Rh8 {[%clk 0:00:01]} 42... Kc7 {[%clk 0:00:34.3]} 0-1

[Event "Late-Titled-Tuesday-Blitz-June-04-2024"]
[Site "Chess.com"]
[Date "2024.06.04"]
[Round "6"]
[White "Supelyel"]
[Black "SoCalJuniorChess"]
[Result "0-1"]
[WhiteElo "2416"]
[BlackElo "2220"]
[TimeControl "180+1"]
[EndTime "15:05:46 PDT"]
[Termination "SoCalJuniorChess won by resignation"]

1. c4 {[%clk 0:03:00.9]} 1... Nf6 {[%clk 0:02:58.3]} 2. g3 {[%clk 0:03:00.6]}
2... c5 {[%clk 0:02:57.9]} 3. Bg2 {[%clk 0:03:00.8]} 3... Nc6 {[%clk 0:02:55.4]}
4. Nc3 {[%clk 0:03:00.8]} 4... g6 {[%clk 0:02:54.8]} 5. Nf3 {[%clk 0:03:01]}
5... Bg7 {[%clk 0:02:54.7]} 6. O-O {[%clk 0:03:01.5]} 6... O-O {[%clk
0:02:54.7]} 7. d3 {[%clk 0:02:59.9]} 7... d6 {[%clk 0:02:51.7]} 8. Bg5 {[%clk
0:02:59.4]} 8... h6 {[%clk 0:02:51.2]} 9. Bxf6 {[%clk 0:02:59.5]} 9... Bxf6
{[%clk 0:02:50.7]} 10. Qd2 {[%clk 0:02:59.7]} 10... Bg7 {[%clk 0:02:50.3]} 11.
Rab1 {[%clk 0:02:59.8]} 11... Kh7 {[%clk 0:02:48.3]} 12. a3 {[%clk 0:03:00]}
12... Nd4 {[%clk 0:02:47.1]} 13. b4 {[%clk 0:02:56.4]} 13... Rb8 {[%clk
0:02:39.7]} 14. Rfc1 {[%clk 0:02:12.5]} 14... Bg4 {[%clk 0:02:35.5]} 15. Nxd4
{[%clk 0:02:08.5]} 15... Bxd4 {[%clk 0:02:30.1]} 16. bxc5 {[%clk 0:02:01.9]}
16... Bxc5 {[%clk 0:02:27.7]} 17. Bxb7 {[%clk 0:01:35.8]} 17... Bxa3 {[%clk
0:02:26]} 18. Rd1 {[%clk 0:01:35.3]} 18... Qa5 {[%clk 0:02:22.6]} 19. Nd5 {[%clk
0:00:41.2]} 19... Qxd2 {[%clk 0:02:10.8]} 20. Rxd2 {[%clk 0:00:41.3]} 20... Bc8
{[%clk 0:01:52.8]} 21. Ra2 {[%clk 0:00:40.7]} 21... Bc5 {[%clk 0:01:48.9]} 22.
Rab2 {[%clk 0:00:37]} 22... e6 {[%clk 0:01:43.2]} 23. Nf6+ {[%clk 0:00:27]}
23... Kg7 {[%clk 0:01:42.9]} 24. Ne4 {[%clk 0:00:27.4]} 24... Bd4 {[%clk
0:01:42.9]} 25. Rb3 {[%clk 0:00:25.8]} 25... d5 {[%clk 0:01:22.3]} 26. cxd5
{[%clk 0:00:25]} 26... Bxb7 {[%clk 0:01:22.4]} 27. Rxb7 {[%clk 0:00:23.5]} 27...
Rxb7 {[%clk 0:01:22.7]} 28. Rxb7 {[%clk 0:00:24.4]} 28... exd5 {[%clk
0:01:22.9]} 29. Nd6 {[%clk 0:00:22.2]} 29... Bb6 {[%clk 0:01:17.9]} 30. e3
{[%clk 0:00:21.5]} 30... Kf6 {[%clk 0:01:15.1]} 31. Nb5 {[%clk 0:00:20.6]} 31...
Ra8 {[%clk 0:01:07.2]} 32. d4 {[%clk 0:00:20.7]} 32... h5 {[%clk 0:00:39.2]} 33.
Kf1 {[%clk 0:00:20.7]} 33... g5 {[%clk 0:00:39.1]} 34. Ke2 {[%clk 0:00:21.1]}
34... g4 {[%clk 0:00:39.5]} 35. Kd3 {[%clk 0:00:21.4]} 35... h4 {[%clk
0:00:33.4]} 36. gxh4 {[%clk 0:00:19.6]} 36... Rh8 {[%clk 0:00:30.1]} 37. Nxa7
{[%clk 0:00:19.6]} 37... Bxa7 {[%clk 0:00:29.2]} 38. Rxa7 {[%clk 0:00:20.5]}
38... Rxh4 {[%clk 0:00:29.4]} 39. Ra6+ {[%clk 0:00:20.4]} 39... Kf5 {[%clk
0:00:27.9]} 40. Rd6 {[%clk 0:00:20.1]} 40... Rxh2 {[%clk 0:00:26.7]} 41. Rxd5+
{[%clk 0:00:20.5]} 41... Kg6 {[%clk 0:00:27.3]} 42. Ke2 {[%clk 0:00:17]} 42...
g3 {[%clk 0:00:27.2]} 43. Re5 {[%clk 0:00:17.3]} 43... g2 {[%clk 0:00:21.5]} 44.
Re8 {[%clk 0:00:14.1]} 44... Kg7 {[%clk 0:00:21.4]} 0-1

[Event "Late-Titled-Tuesday-Blitz-June-04-2024"]
[Site "Chess.com"]
[Date "2024.06.04"]
[Round "6"]
[White "N_Mullodzhanov"]
[Black "ansko1999"]
[Result "1/2-1/2"]
[WhiteElo "2519"]
[BlackElo "2635"]
[TimeControl "180+1"]
[EndTime "15:05:53 PDT"]
[Termination "Game drawn by stalemate"]

1. e4 {[%clk 0:03:00.9]} 1... c5 {[%clk 0:02:59.4]} 2. c3 {[%clk 0:03:00.5]}
2... Nf6 {[%clk 0:02:59.3]} 3. e5 {[%clk 0:03:00.1]} 3... Nd5 {[%clk 0:02:59.9]}
4. Nf3 {[%clk 0:03:00.3]} 4... Nc6 {[%clk 0:02:59.3]} 5. Bc4 {[%clk 0:03:00.6]}
5... Nb6 {[%clk 0:02:58.8]} 6. Bb3 {[%clk 0:03:01.1]} 6... d6 {[%clk 0:02:55.7]}
7. exd6 {[%clk 0:03:00.8]} 7... Qxd6 {[%clk 0:02:55.6]} 8. O-O {[%clk
0:03:01.2]} 8... Be6 {[%clk 0:02:54]} 9. Bxe6 {[%clk 0:03:00.9]} 9... Qxe6
{[%clk 0:02:54.2]} 10. a4 {[%clk 0:03:01.8]} 10... Nd7 {[%clk 0:02:47]} 11. a5
{[%clk 0:03:00]} 11... a6 {[%clk 0:02:46.6]} 12. d4 {[%clk 0:02:55.4]} 12...
cxd4 {[%clk 0:02:44]} 13. Nxd4 {[%clk 0:02:55.7]} 13... Qd5 {[%clk 0:02:38.9]}
14. Qb3 {[%clk 0:02:51.1]} 14... Qxb3 {[%clk 0:02:33.6]} 15. Nxb3 {[%clk
0:02:52]} 15... e5 {[%clk 0:02:33]} 16. Be3 {[%clk 0:02:50]} 16... Rc8 {[%clk
0:02:29.5]} 17. N1d2 {[%clk 0:02:48.8]} 17... Be7 {[%clk 0:02:18.6]} 18. f4
{[%clk 0:02:48.3]} 18... O-O {[%clk 0:02:16.4]} 19. Nc4 {[%clk 0:02:33.9]} 19...
exf4 {[%clk 0:02:10]} 20. Rxf4 {[%clk 0:02:21.7]} 20... Bg5 {[%clk 0:02:07.3]}
21. Rf3 {[%clk 0:02:00.6]} 21... Bxe3+ {[%clk 0:02:02.9]} 22. Rxe3 {[%clk
0:02:00.8]} 22... Nb4 {[%clk 0:01:57.9]} 23. Nd6 {[%clk 0:01:56.6]} 23... Nc2
{[%clk 0:01:56.2]} 24. Nxc8 {[%clk 0:01:38.6]} 24... Rxc8 {[%clk 0:01:57.1]} 25.
Rd1 {[%clk 0:01:27.6]} 25... Nxe3 {[%clk 0:01:54.5]} 26. Rxd7 {[%clk 0:01:27.1]}
26... Nc4 {[%clk 0:01:51.8]} 27. Rxb7 {[%clk 0:01:21]} 27... Nxb2 {[%clk
0:01:47.3]} 28. Nd4 {[%clk 0:01:11.3]} 28... Nc4 {[%clk 0:01:42.9]} 29. Nc6
{[%clk 0:01:10.8]} 29... Kf8 {[%clk 0:01:34.3]} 30. Rb8 {[%clk 0:01:00.9]} 30...
Rxb8 {[%clk 0:01:29.9]} 31. Nxb8 {[%clk 0:01:01.8]} 31... Nxa5 {[%clk
0:01:27.4]} 32. Nxa6 {[%clk 0:01:01.7]} 32... Ke7 {[%clk 0:01:26.7]} 33. Kf2
{[%clk 0:01:01.6]} 33... Kd6 {[%clk 0:01:23]} 34. Ke3 {[%clk 0:01:00.4]} 34...
Nc4+ {[%clk 0:01:21]} 35. Kd4 {[%clk 0:00:58.1]} 35... Ne5 {[%clk 0:01:19.9]}
36. c4 {[%clk 0:00:51]} 36... Nc6+ {[%clk 0:01:17.2]} 37. Ke4 {[%clk 0:00:49.5]}
37... g6 {[%clk 0:01:14.4]} 38. c5+ {[%clk 0:00:44.5]} 38... Kd7 {[%clk
0:01:02.2]} 39. Kd5 {[%clk 0:00:43]} 39... f5 {[%clk 0:00:58.6]} 40. Kc4 {[%clk
0:00:33.9]} 40... g5 {[%clk 0:00:46.1]} 41. Nb4 {[%clk 0:00:30.4]} 41... Nxb4
{[%clk 0:00:34.6]} 42. Kxb4 {[%clk 0:00:31.3]} 42... Kc6 {[%clk 0:00:34.7]} 43.
Kc4 {[%clk 0:00:30.2]} 43... h5 {[%clk 0:00:35.2]} 44. Kd4 {[%clk 0:00:25.5]}
44... h4 {[%clk 0:00:29.3]} 45. h3 {[%clk 0:00:17.4]} 45... g4 {[%clk
0:00:26.8]} 46. Ke5 {[%clk 0:00:16.2]} 46... gxh3 {[%clk 0:00:24.7]} 47. gxh3
{[%clk 0:00:16.4]} 47... f4 {[%clk 0:00:23.5]} 48. Kxf4 {[%clk 0:00:16.4]} 48...
Kxc5 {[%clk 0:00:24.2]} 49. Kg5 {[%clk 0:00:16.7]} 49... Kd6 {[%clk 0:00:25.1]}
50. Kxh4 {[%clk 0:00:17.2]} 50... Ke7 {[%clk 0:00:25.9]} 51. Kg5 {[%clk
0:00:18.1]} 51... Kf8 {[%clk 0:00:26.7]} 52. h4 {[%clk 0:00:19]} 52... Kg8
{[%clk 0:00:27.6]} 53. h5 {[%clk 0:00:19.9]} 53... Kh8 {[%clk 0:00:28.5]} 54.
Kg6 {[%clk 0:00:20.4]} 54... Kg8 {[%clk 0:00:29.4]} 55. Kh6 {[%clk 0:00:21.1]}
55... Kh8 {[%clk 0:00:30.3]} 56. Kg6 {[%clk 0:00:21.5]} 56... Kg8 {[%clk
0:00:31.2]} 57. h6 {[%clk 0:00:22.1]} 57... Kh8 {[%clk 0:00:32.1]} 58. h7 {[%clk
0:00:22.1]} 1/2-1/2

[Event "Late-Titled-Tuesday-Blitz-June-04-2024"]
[Site "Chess.com"]
[Date "2024.06.04"]
[Round "6"]
[White "Attacker_2006"]
[Black "shirovin"]
[Result "1-0"]
[WhiteElo "2493"]
[BlackElo "2087"]
[TimeControl "180+1"]
[EndTime "15:05:55 PDT"]
[Termination "Attacker_2006 won on time"]

1. e4 {[%clk 0:03:00.9]} 1... c5 {[%clk 0:03:00]} 2. Nf3 {[%clk 0:03:01.3]} 2...
d6 {[%clk 0:03:00.3]} 3. Bb5+ {[%clk 0:03:01.6]} 3... Nd7 {[%clk 0:02:59.4]} 4.
c3 {[%clk 0:03:01.6]} 4... a6 {[%clk 0:02:57.8]} 5. Ba4 {[%clk 0:03:00.8]} 5...
b5 {[%clk 0:02:56]} 6. Bc2 {[%clk 0:03:01.3]} 6... Bb7 {[%clk 0:02:56.1]} 7. d4
{[%clk 0:03:00.4]} 7... cxd4 {[%clk 0:02:54.9]} 8. cxd4 {[%clk 0:03:00.8]} 8...
e6 {[%clk 0:02:52.4]} 9. O-O {[%clk 0:03:00.1]} 9... Be7 {[%clk 0:02:52]} 10. a3
{[%clk 0:02:57.4]} 10... Ngf6 {[%clk 0:02:49.4]} 11. Re1 {[%clk 0:02:56.4]}
11... O-O {[%clk 0:02:41.2]} 12. Nbd2 {[%clk 0:02:52.7]} 12... Rc8 {[%clk
0:02:38.4]} 13. Nf1 {[%clk 0:02:51.7]} 13... Qc7 {[%clk 0:02:37]} 14. Bd3 {[%clk
0:02:50]} 14... d5 {[%clk 0:02:31.6]} 15. e5 {[%clk 0:02:46.5]} 15... Ne4 {[%clk
0:02:31.1]} 16. Ng3 {[%clk 0:02:42.1]} 16... Nxg3 {[%clk 0:02:23.6]} 17. hxg3
{[%clk 0:02:43]} 17... Nb6 {[%clk 0:02:19.5]} 18. Bf4 {[%clk 0:02:15.4]} 18...
Nc4 {[%clk 0:02:16.8]} 19. Bb1 {[%clk 0:02:03.1]} 19... Nxb2 {[%clk 0:01:40.9]}
20. Qe2 {[%clk 0:01:57.4]} 20... Nc4 {[%clk 0:01:31.9]} 21. Qd3 {[%clk
0:01:56.6]} 21... g6 {[%clk 0:01:28.8]} 22. Bh6 {[%clk 0:01:57.1]} 22... Rfd8
{[%clk 0:01:23.9]} 23. a4 {[%clk 0:01:42.7]} 23... b4 {[%clk 0:01:16.9]} 24. Nh4
{[%clk 0:01:38.6]} 24... Nb6 {[%clk 0:00:54.2]} 25. Qf3 {[%clk 0:01:27]} 25...
Qc3 {[%clk 0:00:50.1]} 26. Bd3 {[%clk 0:01:20.9]} 26... b3 {[%clk 0:00:43.2]}
27. Rec1 {[%clk 0:01:19.7]} 27... Qb4 {[%clk 0:00:28.5]} 28. Rxc8 {[%clk
0:01:13.3]} 28... Rxc8 {[%clk 0:00:27.1]} 29. Rb1 {[%clk 0:01:08.8]} 29... b2
{[%clk 0:00:23.9]} 30. Kh2 {[%clk 0:01:07.8]} 30... Rc3 {[%clk 0:00:17.9]} 31.
Bd2 {[%clk 0:01:06.3]} 31... Nxa4 {[%clk 0:00:14]} 32. Qe2 {[%clk 0:01:01.6]}
32... Qb3 {[%clk 0:00:11.1]} 33. Bxa6 {[%clk 0:00:59.2]} 33... Bxa6 {[%clk
0:00:08.2]} 34. Qxa6 {[%clk 0:00:59.7]} 34... Rc2 {[%clk 0:00:06]} 35. Qa8+
{[%clk 0:00:55.4]} 35... Kg7 {[%clk 0:00:05.5]} 36. Bf4 {[%clk 0:00:50.3]} 36...
Nc3 {[%clk 0:00:04.1]} 37. Qe8 {[%clk 0:00:47.1]} 37... Nxb1 {[%clk 0:00:02.2]}
38. Qxe7 {[%clk 0:00:46.7]} 38... Nc3 {[%clk 0:00:01.4]} 39. Qf6+ {[%clk
0:00:45.8]} 39... Kg8 {[%clk 0:00:01.3]} 40. Qd8+ {[%clk 0:00:45.6]} 40... Kg7
{[%clk 0:00:01.1]} 41. Qf6+ {[%clk 0:00:46.2]} 41... Kg8 {[%clk 0:00:01]} 42.
Bh6 {[%clk 0:00:24.6]} 1-0